[Event "Benidorm Open-A 2022"]
[Site "Benidorm"]
[Date "2022.12.09"]
[Round "8.30"]
[White "Perez Ruiz, Santiago"]
[Black "Minana Menor, Antonio"]
[Result "0-1"]
[ECO "D85"]
[WhiteElo "1966"]
[BlackElo "2102"]
[Annotator "TA"]
[PlyCount "52"]
[EventDate "2022.12.03"]
[EventType "swiss"]
[EventCountry "ESP"]
[SourceTitle "playchess.com"]
[Source "ChessBase"]
[SourceQuality "1"]
[TimeControl "5400+30"]

{[%evp 19,52,18,19,0,0,0,2,0,9,29,51,14,20,29,25,-48,11,0,5,-37,0,-160,-147,-141,-8,-8,-16,-17,0,0,141,-483,-498,-465,-486]} 1. d4 Nf6 2. c4 g6 3. Nc3 d5 4. cxd5 Nxd5 5. e4 Nxc3 6. bxc3 Bg7 7. Be3 c5 8. Qd2 Qa5 9. Rc1 O-O 10. Nf3 Rd8 (10... cxd4 {simplifies} 11. cxd4 Qxd2+ 12. Nxd2 e6) 11. Bc4 {D85: Exchange Grünfeld: Unusual White 7th moves and lines with 7 Nf3.} Nc6 12. d5 e6 {[#]} 13. O-O $146 {The position is equal.} ({Predecessor:} 13. Qb2 exd5 14. exd5 Ne5 15. Nxe5 Bxe5 16. O-O Bf5 17. Rfd1 Qb4 18. Qb3 Qxb3 19. Bxb3 {½-½ (30) Huliak,P (1829)-Zdrazil,P (1793) Slovakia 2020}) 13... b5 14. Be2 c4 15. Rfd1 (15. Bg5 $5 {[%cal Rg5d8]}) 15... exd5 16. exd5 Ne7 17. d6 (17. Bg5 $11 Rd7 18. Bxe7 Rxe7 19. d6) 17... Nf5 ({Black should play} 17... Bb7 $1 $15) 18. Bf4 $1 $11 {g4 is the strong threat.} Qb6 {[%cal Of5d6]} 19. Ng5 {Black must now prevent Qd5.} (19. g4 Nxd6 20. Rb1 (20. Bxd6 Bf8 $17) 20... Bb7 $1 21. Bxd6 Bf8 $17) 19... Bb7 {Inhibits Qd5.} (19... h6 $5 {[%cal Rh6g5]} 20. Ne4 g5 $11) 20. g4 $2 {[#] Prevents h6.} (20. Rb1 $11 Bf6 21. d7) 20... Nxd6 $1 $17 {[%mdl 512]} 21. Bxd6 {[#] aiming for Qf4.} Be5 {Inhibits Qf4.} (21... Qc6 $2 22. Bf3 Qd7 23. Qf4 $18) (21... h6 $1 $17 {[%cal Rh6g5]} 22. Bf3 (22. Nf3 $2 Bf8 $19) 22... hxg5 23. Bxb7 Qxb7 24. Qxg5 Qf3) 22. Bxe5 $11 Rxd2 23. Rxd2 {Threatens to win with Rcd1.} f6 {Really sharp!} (23... Re8 $5 {[%cal Re8e5]} 24. Bd4 (24. Rd6 $2 Qc5 $19) 24... Qc7 $15) 24. Bd4 ({Don't blunder} 24. Rd6 $2 Qc5 25. Rcd1 fxg5 $19) 24... Qd6 {[#]} (24... Qc7 $1 $11 {remains equal.} 25. Nh3 (25. Bxf6 $2 {is the wrong capture.} Qc6 $19) 25... h5) 25. Bf3 $2 {[%mdl 8192]} (25. Be3 $1 $16 {is forced if you want to stay better.} Qe7 26. Nf3) 25... Bxf3 $19 26. Nxf3 Qf4 $1 {[%csl LRf3,LRg4] Inhibits h3.   Weighted Error Value: White=0.62/Black=0.25 (precise)} 0-1

[Event "Benidorm Open-A 2022"]
[Site "Benidorm"]
[Date "2022.12.10"]
[Round "9.1"]
[White "Saydaliev, Saidakbar"]
[Black "Van Foreest, Machteld"]
[Result "1/2-1/2"]
[ECO "E53"]
[WhiteElo "2376"]
[BlackElo "2206"]
[Annotator "TA"]
[PlyCount "60"]
[EventDate "2022.12.03"]
[EventType "swiss"]
[EventCountry "ESP"]
[SourceTitle "playchess.com"]
[Source "ChessBase"]
[SourceQuality "1"]
[TimeControl "5400+30"]

{[%evp 17,60,11,27,5,0,0,64,77,53,53,47,53,52,51,63,43,158,58,49,26,28,35,35,35,35,34,80,39,57,59,72,17,21,20,20,6,0,0,16,0,0,0,23,0,0]} 1. d4 Nf6 2. c4 e6 3. Nc3 Bb4 4. e3 O-O 5. Bd3 d5 6. Nf3 c5 7. cxd5 cxd4 8. exd4 exd5 9. O-O Bg4 10. h3 {B14: Caro-Kann: Panov-Botvinnik Attack with 5...e6 and 5...g6.} (10. Bg5 $5 {[%cal Rg5f6]}) 10... Bh5 11. Bg5 Be7 (11... Bxc3 $11 12. bxc3 Nbd7) 12. g4 $14 {White is slightly better.} Bg6 {[#]} 13. Bxf6 $146 ({Predecessor:} 13. Bxg6 hxg6 14. Qb3 Nc6 15. Qxb7 Na5 16. Qa6 Nc4 17. Rfe1 Nxb2 18. Qb7 Ba3 19. Bxf6 Qxf6 20. Nxd5 {1-0 (28) Postny,E (2605)-Osmak,I (2438) Chess.com INT 2020}) 13... Bxf6 14. Bxg6 hxg6 15. Qb3 {[%csl LRb7,LRd5]} Nc6 16. Rad1 ({Of course not} 16. Qxd5 $6 Nxd4 17. Nxd4 Bxd4 $11) 16... Kh8 (16... Qd7 $14) 17. Qxd5 (17. Nxd5 $2 {too greedy.} Na5 18. Qb5 a6 $19) ({White should try} 17. Qxb7 $16 Qd6 18. Nb5) 17... Qb6 18. Qb5 {Threatens to win with Qxb6.} (18. Na4 $5 {[%cal Ra4b6]} Qa6 19. Nc5 $14) 18... Nxd4 19. Nxd4 Bxd4 20. Qxb6 Bxb6 21. Rd7 Rab8 (21... f5 $14) 22. Re1 Kg8 23. Nd5 Bd8 24. Re3 {White is much more active. The black rooks are badly placed.} (24. Ne7+ $16 Kh7 25. b4) 24... Bh4 $11 25. Rf3 a6 26. Ne7+ Kh7 27. Nd5 Kg8 28. Ne7+ Kh7 29. Nd5 Kg8 30. Ne7+ Kh7 {Weighted Error Value: White=0.17 (very precise) /Black=0.22 (precise)} 1/2-1/2

[Event "Benidorm Open-A 2022"]
[Site "Benidorm"]
[Date "2022.12.10"]
[Round "9.2"]
[White "Sarkar, Justin"]
[Black "Sattarov, Bobir"]
[Result "0-1"]
[ECO "C92"]
[WhiteElo "2350"]
[BlackElo "2433"]
[Annotator "TA"]
[PlyCount "84"]
[EventDate "2022.12.03"]
[EventType "swiss"]
[EventCountry "ESP"]
[SourceTitle "playchess.com"]
[Source "ChessBase"]
[SourceQuality "1"]
[TimeControl "5400+30"]

{[%evp 37,84,0,26,-18,10,0,10,0,-9,-11,5,-21,-23,-13,-35,-23,-22,-62,-54,-141,-125,-133,-88,-91,-91,-141,-116,-197,-197,-195,-180,-167,-155,-398,-395,-390,-383,-682,-675,-635,-634,-658,-627,-508,-458,-714,-697,-624,-586]} 1. e4 e5 2. Nf3 Nc6 3. Bb5 {[%cal Bf1b5,Bb5a4,Ba4b3][%mdl 32]} a6 4. Ba4 Nf6 5. O-O Be7 6. Re1 b5 7. Bb3 d6 8. c3 O-O 9. h3 Bb7 10. d4 Re8 11. Ng5 Rf8 12. Nf3 Re8 13. Nbd2 Bf8 14. a4 h6 15. Bc2 exd4 16. cxd4 Nb4 17. Bb1 c5 18. d5 Nd7 {[%cal Bf6d7,Bd7c5,Bc5d3][%mdl 32]} 19. Ra3 c4 20. Rae3 {C92: Closed Ruy Lopez: 9...Be6, Karpov and Flohr-Zaitsev Variations.} Nc5 (20... Rc8 {simplifies} 21. axb5 axb5 22. Nd4 Qb6) 21. b3 $1 Ncd3 22. Rf1 {The position is equal.} f5 23. bxc4 {[#]} fxe4 $146 ({Predecessor:} 23... bxc4 24. exf5 Bxd5 25. Nb3 Qf6 26. Nbd4 Bxf3 27. Nxf3 d5 28. Rxe8 Rxe8 29. Be3 Bd6 30. Bxd3 Nxd3 31. Nd4 Re4 {0-1 (40) Ongut,T (2185)-Sargsyan,S (2463) Porto Carras 2018}) 24. Rxe4 Rxe4 {[%mdl 64] [#] Remove Defender} 25. Nxe4 bxc4 26. Nc3 Qf6 27. Qd2 Qf7 (27... Bxd5 $2 28. Nxd5 Nxd5 29. Ba2 $18 (29. Bxd3 cxd3 30. Qxd3 Qf7 $14)) 28. Ne1 (28. Rd1 $15) 28... Nxc1 $17 ({Don't do} 28... Nxd5 29. Nxd3 cxd3 30. Nxd5 (30. Bxd3 Rc8 $14) (30. Qxd3 Nf6 $16) 30... Bxd5 31. Qxd3 $16 (31. Bxd3 Bc4 $14)) 29. Qxc1 Nxd5 30. Nxd5 Bxd5 31. Qc2 (31. Nc2 $142) 31... g6 $36 {[%mdl 2048] Black has strong initiative. Active counter play!} 32. f4 (32. Qd1 $17) 32... Re8 $19 {[%cal Ba8e8,Be8e2,Be2b2][%mdl 32]} 33. Qxg6+ Qxg6 34. Bxg6 Re2 35. f5 $2 {White does not recover from this.} (35. Bf5 $17) 35... Be4 36. Bh5 {Against d5} Rb2 37. f6 $2 (37. Rf4 d5 38. Rg4+ Kh8 39. f6) 37... d5 {Black is clearly winning.} 38. f7+ Kg7 {Threatens to win with ...Bc5+.} 39. Rf4 Bc5+ {A strong pair of Bishops.} 40. Kf1 c3 {aiming for ...Kf8.} 41. Rg4+ (41. f8=B+ $142 Bxf8 42. Rf7+ Kg8 43. Rc7) 41... Kf6 {[#] ...Rf2+ is the strong threat.} 42. Rf4+ Kg5 {Weighted Error Value: White=0.64/Black=0.13 (very precise)} 0-1

[Event "Benidorm Open-A 2022"]
[Site "Benidorm"]
[Date "2022.12.10"]
[Round "9.3"]
[White "Ajay Karthikeyan"]
[Black "Fernandez Guillen, Ernesto J."]
[Result "1-0"]
[ECO "C70"]
[WhiteElo "2441"]
[BlackElo "2462"]
[Annotator "TA"]
[PlyCount "63"]
[EventDate "2022.12.03"]
[EventType "swiss"]
[EventCountry "ESP"]
[SourceTitle "playchess.com"]
[Source "ChessBase"]
[SourceQuality "1"]
[TimeControl "5400+30"]

{[%evp 9,63,47,46,61,59,44,49,62,43,67,112,64,120,114,172,89,99,84,120,95,154,129,229,72,116,104,135,95,87,94,81,105,102,86,198,197,274,200,321,317,962,964,1129,1084,1543,1515,1979,1879,1814,1801,1741,1749,1692,1250,1260,1173]} 1. e4 e5 2. Nf3 Nc6 3. Bb5 {[%cal Bf1b5,Bb5a4,Ba4b3][%mdl 32]} a6 4. Ba4 f5 5. d4 exd4 6. e5 {C70: Ruy Lopez: 3...a6 4 Ba4, Norwegian and Delayed Schliemann.} b5 {now scores much better than the old 6...Bc5.} 7. Bb3 Bb7 8. O-O {White is slightly better.} Na5 $1 9. Nxd4 (9. Qxd4 c5 10. Qf4 c4 11. Qxf5 Ne7 $15) 9... Nxb3 10. axb3 {[#]} ({Better is} 10. cxb3 $16 Qh4 11. Nc3 (11. Nxf5 Qe4 $11)) 10... Qe7 $146 (10... Qh4 $14) ({Predecessor:} 10... Qh4 11. Nc3 Ne7 12. e6 O-O-O 13. Nf3 Qf6 14. Bg5 Qxe6 15. Re1 Qf7 16. Ne5 Qe6 {1-0 (49) Makoveev,I (2306)-Anadkat,K (2170) Tornelo INT 2021}) 11. Nd2 ({Much less strong is} 11. Nxf5 Qe6 12. Nd4 Qg6 $14) 11... g6 (11... Qg5 $16 12. N2f3 Qg6) 12. Re1 (12. N2f3 $18) 12... c5 $16 13. N4f3 g5 14. Nf1 f4 {[#]} (14... h6 $142) 15. b4 $1 {[%cal Bb3b4,Bb4c5][%mdl 32] Hoping for bxc5. White is more active.} Qg7 (15... h6 $16) 16. N3d2 $2 (16. N1d2 $18 {has better winning chances.}) 16... Qg6 {Prevents Ne4.} 17. Nb3 Rc8 18. bxc5 {[%cal Oe5e6] aiming for e6!} Ne7 {Inhibits e6.} 19. Na5 Bd5 20. b3 Bg7 21. Ba3 g4 (21... Ba8 $16 {keeps fighting.}) 22. c6 dxc6 (22... Bxc6 $142 23. Qd2 Ba8) 23. c4 Bxg2 (23... bxc4 $142 24. Bxe7 (24. Nxc4 Bxc4 25. Bxe7 Bxf1 $16) 24... Kxe7) 24. Kxg2 {Nb7 is the strong threat.} Nf5 $2 (24... c5 25. Kg1 O-O) 25. Nb7 $18 {White is clearly winning.} b4 26. Bxb4 Nh4+ 27. Kh1 {[%cal Oe5e6] White threatens e6! and mate.} Bf8 {[#] Against e6} 28. e6 $1 {[%csl Ge6][%cal Rd1d7]} Bxb4 29. Qd7+ Kf8 30. e7+ Bxe7 31. Qxe7+ Kg8 32. Qxh4 {Weighted Error Value: White=0.26 (precise) /Black=0.40} 1-0

[Event "Benidorm Open-A 2022"]
[Site "Benidorm"]
[Date "2022.12.10"]
[Round "9.4"]
[White "Christiansen, Johan-Sebastian"]
[Black "Chernikov, Vladimir"]
[Result "1/2-1/2"]
[ECO "A13"]
[WhiteElo "2582"]
[BlackElo "2247"]
[Annotator "TA"]
[PlyCount "64"]
[EventDate "2022.12.03"]
[EventType "swiss"]
[EventCountry "ESP"]
[SourceTitle "playchess.com"]
[Source "ChessBase"]
[SourceQuality "1"]
[TimeControl "5400+30"]

{[%evp 9,64,-9,-16,-8,23,24,20,29,23,20,10,9,24,25,18,11,16,1,43,45,85,87,355,341,347,337,356,85,79,79,73,79,86,77,89,78,131,112,114,76,133,151,145,139,137,137,148,148,421,444,436,137,135,134,136,4,8]} 1. Nf3 d5 2. c4 e6 3. g3 a6 4. Qc2 dxc4 {[#]} 5. Qxc4 $146 ({Predecessor:} 5. a4 Nc6 6. Qxc4 e5 7. d3 Be6 8. Qc2 Bd5 9. e4 Be6 10. Be3 Bb4+ 11. Nbd2 Qd6 {0-1 (50) Alvarez Etxarri,A (2062)-Tabuenca Mendataurigoitia,D (2170) Salobrena 2022}) 5... b5 6. Qe4 {A13: English Opening: 1...e6.} Ra7 7. Bg2 c5 8. O-O Nf6 9. Qc2 Nc6 10. a4 Qb6 11. axb5 axb5 12. Rxa7 Qxa7 13. Nc3 Ba6 14. d4 cxd4 (14... Nxd4 15. Nxd4 cxd4 16. Bc6+ Kd8 17. Ne4 $16 (17. Nxb5 Qc5 $14)) 15. Nd5 {[%mdl 64]} Nb4 $2 {[%mdl 8192]} (15... Qd7 $16 {is a better defense.} 16. Nc7+ Qxc7 17. Nxd4 Nd5 18. Bxd5 (18. Qxc6+ Qxc6 19. Nxc6 Bb7 $14) (18. Nxc6 Bb7 $11) 18... exd5) 16. Nxb4 $18 ({Not} 16. Qc7 Qb7 $16) 16... Bxb4 17. Qc6+ Ke7 18. Nxd4 $2 Qxd4 $16 19. Qxa6 Rb8 20. Be3 {[%cal Bc1e3,Be3b6,Bb6c7][%mdl 32]} Qd6 21. Qa7+ Kf8 22. Rc1 {aiming for Rc7. White is more active.} Rd8 (22... Kg8 $142) 23. Bb6 $36 {[%mdl 2048] Black is under strong pressure.} Qd2 {[%csl LRb2,LRc1,LRe2]} 24. Qa1 (24. Rc6 {looks sharper.} Qd1+ 25. Bf1 Qd5 26. Rc7) 24... Rb8 ({Black should play} 24... Re8) 25. Bc7 Re8 26. Bc6 {[%csl LRb5,LRe8][%cal Bg2c6,Bc6b5,Bb5c4][%mdl 32]} Rc8 27. Bxb5 {[%cal Oc7d6] Threatens to win with Bd6+! This pair of bishops is nice.} Kg8 28. Rc4 Qd5 {[%mdl 8192] Inhibits Bd6.} (28... Bf8 $16 {might work better.}) 29. Rxb4 $18 Rxc7 {[#]} 30. Rc4 $1 {[%mdl 512]} Rxc4 $16 31. Bxc4 Qb7 32. b4 ({White should try} 32. Qa3 $16) 32... Qxb4 {Weighted Error Value: White=0.31/Black=0.41} 1/2-1/2

[Event "Benidorm Open-A 2022"]
[Site "Benidorm"]
[Date "2022.12.10"]
[Round "9.5"]
[White "Van Delft, Merijn"]
[Black "Harshad S"]
[Result "1/2-1/2"]
[ECO "B99"]
[WhiteElo "2367"]
[BlackElo "2202"]
[Annotator "TA"]
[PlyCount "79"]
[EventDate "2022.12.03"]
[EventType "swiss"]
[EventCountry "ESP"]
[SourceTitle "playchess.com"]
[Source "ChessBase"]
[SourceQuality "1"]
[TimeControl "5400+30"]

{[%evp 22,79,45,52,60,45,45,51,41,53,52,37,37,29,37,33,36,38,46,22,33,35,41,14,23,14,62,0,0,0,33,21,72,18,27,27,24,16,48,50,41,46,41,8,10,9,7,0,17,16,17,9,21,0,0,0,0,0,0,0]} 1. e4 c5 2. Nf3 d6 3. d4 cxd4 4. Nxd4 Nf6 5. Nc3 a6 6. Bg5 e6 7. f4 Be7 8. Qf3 Qc7 9. O-O-O Nbd7 10. g4 {[%cal Bg2g4,Bg4g5][%mdl 32]} h6 11. Bxf6 Bxf6 12. h4 Nb6 $1 {[%mdl 4] is recently more successful than 12...Qb6. B99: Sicilian Najdorf: 6 Bg5 e6 7 f4 Be7 8 Qf3 Qc7 9 0-0-0 Nbd7.} 13. g5 {Inhibits e5.} Bxd4 14. Rxd4 Qc5 {White is slightly better.} 15. Rd2 Bd7 16. Be2 Na4 17. Rd3 Rc8 18. Bd1 Nxc3 19. Rxc3 Qa5 20. Rxc8+ (20. Ra3 {seems wilder.} Qb6 21. Rb3 Qc5 22. Rxb7 Bc6 23. Rb3) 20... Bxc8 21. gxh6 gxh6 {[%cal Oc8d7] [#]} 22. Rg1 $146 ({Predecessor:} 22. e5 dxe5 23. Rf1 Rf8 24. fxe5 Qxe5 25. Qf2 Ke7 26. Qd2 Bd7 27. Re1 Qg3 28. Re4 {0-1 (41) Dushyant,S (2370)-Prraneeth,V (2451) Delhi 2022}) 22... Bd7 23. a3 Qc5 (23... Bc6 $11) 24. Rg3 (24. Qg3 $14) 24... Bc6 $11 25. c3 Qc4 26. Bc2 Bb5 (26... Ke7 $11 {keeps the balance.}) 27. b3 (27. Rg1 $16) 27... Qe2 28. Qxe2 Bxe2 {[%mdl 4096] Endgame KRB-KRB} 29. Kd2 Bb5 30. e5 {[#] c4 is the strong threat.} Ke7 31. c4 Bc6 32. Ke3 b5 {The position is equal.} 33. Bd3 bxc4 34. Bxc4 a5 35. Kd4 Rd8 {[#] Hoping for ...dxe5+.} 36. exd6+ Kxd6 37. Rg7 Ke7+ 38. Kc5 Kf6 39. Rg1 Be4 40. b4 {Weighted Error Value: White=0.11 (very precise) /Black=0.08 (flawless)} 1/2-1/2

[Event "Benidorm Open-A 2022"]
[Site "Benidorm"]
[Date "2022.12.10"]
[Round "9.6"]
[White "Ilamparthi A R"]
[Black "Vignesh B"]
[Result "1-0"]
[ECO "A05"]
[WhiteElo "2336"]
[BlackElo "2032"]
[Annotator "TA"]
[PlyCount "105"]
[EventDate "2022.12.03"]
[EventType "swiss"]
[EventCountry "ESP"]
[SourceTitle "playchess.com"]
[Source "ChessBase"]
[SourceQuality "1"]
[TimeControl "5400+30"]

{[%evp 10,105,35,28,49,23,17,10,27,21,45,0,18,17,28,31,25,32,25,27,35,29,36,39,41,20,46,57,49,43,74,67,57,49,57,51,56,55,141,86,150,148,220,222,227,231,246,233,260,261,355,358,358,358,358,351,350,325,400,383,389,378,445,450,443,418,501,492,427,376,836,825,1094,1060,1004,994,1093,1045,1302,1284,29947,6925,29978,29978,29977,29977,29981,29982,29981,29983,29983,29984,29985,29986,29987,29988,29990,29989]} 1. Nf3 Nf6 2. g3 g6 3. Bg2 Bg7 4. c4 O-O 5. O-O d6 6. Nc3 Bd7 {A16: English Opening: 1...Nf6 with ...d5.} 7. Re1 c5 8. d4 cxd4 {The position is equal.} 9. Nxd4 Nc6 {[#]} 10. Nc2 $146 ({Predecessor:} 10. e3 Rc8 11. b3 Re8 12. Bb2 Nxd4 13. exd4 Bc6 14. d5 Bd7 15. Qd2 Qa5 16. a4 {1-0 (36) Fernandez Garcia,E (1556)-Cerioni Serret,L (1426) Madrid 2018}) 10... Qa5 11. Bd2 Qh5 12. e4 Qxd1 13. Raxd1 Ne5 14. b3 Bg4 15. Rb1 Bf3 16. Nd5 Nxd5 17. exd5 {[%cal Oe1e5]} e6 18. dxe6 fxe6 19. Bf4 (19. Be3 $5 {[%cal Rc2d4]}) 19... g5 20. Bxe5 ({Much weaker is} 20. Bxg5 Bxg2 21. Kxg2 Nf3 $11) 20... Bxe5 21. Bxf3 Rxf3 22. Rbd1 Raf8 23. Re2 {[%cal Oc4c5]} b6 {White stays focused until the end.} (23... Kf7 $1 $14) 24. Nb4 ({White should play} 24. Nd4) 24... Rc8 (24... R8f7 $142) 25. Nd3 $16 Rf5 (25... h6 $16 {keeps fighting.} 26. Nxe5 dxe5 27. Rxe5 Rc6) 26. Nxe5 $18 dxe5 {[%mdl 4096] Endgame [#] KRR-KRR} 27. Rd7 {Against Rc7} Rf7 28. Rd6 Re8 29. Rxe5 h6 30. Rexe6 ({Don't take} 30. Rdxe6 Rxe6 31. Rxe6 Kh7 $18) 30... Rxe6 31. Rxe6 {KR-KR} Kg7 32. Kg2 Rd7 33. Kf3 Rd3+ 34. Ke2 Rd7 35. Ke3 Kh7 36. h3 Kg7 37. f4 gxf4+ 38. Kxf4 Rf7+ 39. Kg4 Rd7 $2 (39... Kh7 40. Rc6 Rg7+ 41. Kh4 Re7) 40. Kh5 Rd2 41. Re7+ Kf6 42. Rxa7 Rg2 43. g4 {[%cal Bg3g4,Bg4g5,Bg5g6,Bg6g7][%mdl 32]} Rh2 44. h4 (44. Kxh6 $2 Rxh3#) 44... Re2 45. Kxh6 {[#] Intending g5+ and mate.} Re8 46. g5+ {White mates.} Kf5 47. Rf7+ Kg4 48. g6 Rh8+ 49. Kg7 Rxh4 50. Kf6 Rh5 51. g7 Rf5+ 52. Ke7 Kg5 53. Kf8 {Weighted Error Value: White=0.08 (flawless) /Black=0.65} 1-0

[Event "Benidorm Open-A 2022"]
[Site "Benidorm"]
[Date "2022.12.10"]
[Round "9.7"]
[White "Escartin Lacasa, Jose"]
[Black "Gavarrete, Nahun"]
[Result "1-0"]
[ECO "E90"]
[WhiteElo "2277"]
[BlackElo "2308"]
[Annotator "TA"]
[PlyCount "57"]
[EventDate "2022.12.03"]
[EventType "swiss"]
[EventCountry "ESP"]
[SourceTitle "playchess.com"]
[Source "ChessBase"]
[SourceQuality "1"]
[TimeControl "5400+30"]

{[%evp 14,57,47,37,52,-50,-69,-71,46,36,28,34,53,55,56,33,36,43,29,16,73,20,83,93,131,130,122,125,112,104,101,80,208,210,193,214,1239,1210,1179,336,325,300,314,305,333,294]} 1. d4 Nf6 2. c4 g6 3. Nf3 Bg7 4. Nc3 O-O 5. e4 d6 6. Be3 Ng4 7. Bg5 h6 8. Bh4 c5 {E90: King's Indian: Classical: Early deviations and 6 h3.} 9. Be2 (9. dxc5 $14 g5 10. Bg3) 9... cxd4 $1 $15 10. Nxd4 Nf6 (10... Bxd4 $17 11. Qxd4 e5 12. Bxd8 exd4) 11. O-O Nc6 12. Nc2 {[#]} a6 $146 {[%cal Of6e4]} ({Predecessor:} 12... b6 13. Qd2 Kh7 14. f4 Bb7 15. Bf3 Na5 16. Ne3 Rc8 17. Rac1 Nc6 18. Rfd1 e5 19. fxe5 dxe5 20. Qf2 Nd4 21. Ncd5 g5 {½-½ (21) Nutu Gajic,D (2180)-Veroci,Z (2320) Jajce 1986}) 13. Qd2 Rb8 14. a4 Na5 15. Ra3 {Inhibits Nb3.} Be6 16. b3 Qc7 (16... Qb6 $11) 17. f4 ({White should try} 17. Rb1 $16) 17... Rfc8 (17... Qb6+ $11 {remains equal.} 18. Qe3 Qxe3+ 19. Nxe3 Nc6) 18. f5 $16 Nxb3 19. Rxb3 Bxc4 {[#]} 20. Ra3 {Strongly threatening fxg6.} b5 21. axb5 {Hoping for fxg6.} axb5 {And now ...Bxe2 would win.} 22. fxg6 fxg6 {Loses the game.} (22... b4 $16 23. Bxc4 Qxc4 24. gxf7+ Kh8 25. Bxf6 exf6 26. Nxb4 Qxb4) 23. Bxf6 $18 Bxf6 24. Qxh6 Bf7 {[#]} (24... Qc5+ 25. Kh1 Qg5) 25. Nd5 $1 {Rxf6 would kill now.} ({Weaker is} 25. Nxb5 Qxc2 26. Rh3 Qc5+ 27. Kh1 Rxb5 28. Rxf6 Qc1+ 29. Rf1 Qxh6 30. Rxh6 Re5 $17) 25... Bg7 26. Qxg7+ $2 ({Not} 26. Nxc7 Bxh6 27. Ra7 b4 $11) (26. Qh3) 26... Kxg7 {White has a decisive advantage.} 27. Nxc7 Rxc7 28. Nb4 {Black must now prevent Na6.} Bc4 29. Rc1 {Weighted Error Value: White=0.47/Black=0.33} 1-0

[Event "Benidorm Open-A 2022"]
[Site "Benidorm"]
[Date "2022.12.10"]
[Round "9.8"]
[White "Mannion, Stephen R"]
[Black "Rakshitta Ravi"]
[Result "1-0"]
[ECO "C63"]
[WhiteElo "2227"]
[BlackElo "2219"]
[Annotator "TA"]
[PlyCount "69"]
[EventDate "2022.12.03"]
[EventType "swiss"]
[EventCountry "ESP"]
[SourceTitle "playchess.com"]
[Source "ChessBase"]
[SourceQuality "1"]
[TimeControl "5400+30"]

{[%evp 16,69,52,52,50,47,61,48,60,61,47,55,54,42,31,66,111,85,93,75,108,99,91,105,95,62,73,59,63,66,144,133,147,135,160,136,177,116,152,154,170,179,180,160,280,285,252,144,156,163,160,160,151,127,127,120]} 1. e4 e5 2. Nf3 Nc6 3. Bb5 f5 4. d3 fxe4 5. dxe4 Nf6 6. O-O Bc5 7. Bxc6 bxc6 8. Nxe5 O-O 9. Nc3 d6 {C63: Ruy Lopez: Schliemann/Jaenisch Defence.} 10. Na4 {Strongly threatening Nxc5. Pair of Knights!} (10. Nxc6 Qe8 11. Nd4 Nxe4 12. Nxe4 Qxe4 $11) 10... Qe8 11. Nd3 Bg4 {White is slightly better.} 12. Qe1 Bd4 (12... Qxe4 $2 13. Ndxc5 Qxe1 14. Rxe1 $16) 13. c3 $1 Bb6 14. h3 {[#] Hoping for Nxb6.} Be6 15. b3 {[#] Against Bc4} Ba5 $146 ({Predecessor:} 15... Qf7 16. Bd2 Rae8 17. Nxb6 cxb6 18. Qe3 Bf5 19. f3 d5 20. Qg5 Bc8 21. e5 h6 {1-0 (55) Krzyzanowski,W (2474)-Ziese,G (2484) ICCF email 2018}) 16. Bd2 c5 17. Nab2 {Inhibits c4.} Qc6 18. f3 c4 19. Nf4 Bf7 20. Nxc4 Bxc4 21. bxc4 Qxc4 22. Qe2 (22. Qb1 {is more complex.} Bxc3 23. Bxc3 Qxc3 24. Qb3+) 22... Qc5+ {[#]} (22... Qxe2 $14 23. Nxe2 d5) 23. Kh1 $1 $16 Rfe8 {[%cal Od6d5]} 24. Rab1 $36 {[%mdl 2048] Inhibits d5. Rb5 is the strong threat. White has strong initiative.} Rab8 {Against Rb5} 25. Qd3 Qe5 26. c4 ({White should try} 26. Qc4+ $18 Kh8 27. a4) 26... Bb6 27. Ne2 Nh5 28. Rb5 Bc5 29. Bc3 Qg5 (29... Qe6 $16 30. Rfb1 Rb6) 30. Rxb8 $18 Rxb8 31. Qd5+ (31. f4 $18 Qe7 32. e5 (32. Qd5+ Qf7 $16)) 31... Qxd5 $16 32. cxd5 ({Stronger than} 32. exd5 Re8 33. g4 (33. Re1 $2 Bf2 $19) 33... Rxe2 $17) 32... Rb6 33. g4 Nf6 34. Rc1 Nd7 35. Rc2 {Weighted Error Value: White=0.14 (very precise) /Black=0.22 (precise)} 1-0

[Event "Benidorm Open-A 2022"]
[Site "Benidorm"]
[Date "2022.12.10"]
[Round "9.9"]
[White "Assylov, Miras"]
[Black "Rajarishi Karthi"]
[Result "1/2-1/2"]
[ECO "C15"]
[WhiteElo "2025"]
[BlackElo "2239"]
[Annotator "TA"]
[PlyCount "61"]
[EventDate "2022.12.03"]
[EventType "swiss"]
[EventCountry "ESP"]
[SourceTitle "playchess.com"]
[Source "ChessBase"]
[SourceQuality "1"]
[TimeControl "5400+30"]

{[%evp 15,61,-2,22,24,20,6,18,-4,0,0,-11,0,-15,-14,0,-9,-12,-9,-8,-18,0,-29,-31,-36,-32,-37,-31,-31,-29,-45,-18,-19,-18,-36,-37,-62,-53,-57,-63,-58,-69,-39,-32,-20,0,0,0,0]} 1. e4 e6 2. d4 d5 3. Nc3 Bb4 4. Nge2 dxe4 5. a3 Be7 6. Nxe4 Nd7 7. N2g3 Ngf6 8. Bd3 b6 {was the old line (8...c5).} 9. Qf3 {[#] Hoping for Nxf6+. C15: French: 3 Nc3 Bb4: Unusual White 4th moves.} Rb8 $1 10. c3 Bb7 {[#]} 11. Nxf6+ $146 ({Predecessor:} 11. Nh5 Nxh5 12. Qxh5 Nf6 13. Nxf6+ Bxf6 14. O-O g6 15. Qh6 Qd5 16. f3 Qh5 17. Qf4 {1-0 (50) Saric,I (2039)-Jerkovic,I Omis 2003}) 11... Nxf6 12. Bb5+ Kf8 13. Bc6 Bxc6 14. Qxc6 Qd5 15. Qxd5 Nxd5 16. c4 Nf6 17. b4 b5 18. c5 Nd5 19. Ne2 Bf6 20. f4 h5 21. Bd2 Ke7 22. Kf2 Rhd8 23. a4 a6 (23... Kd7 {is more complex.} 24. Kf3 a6 25. Ke4 Ra8) 24. Rhb1 Kd7 25. axb5 axb5 26. Ra6 $1 Ra8 27. Rba1 Rxa6 28. Rxa6 Rb8 29. Kf3 c6 30. Ra7+ Nc7 31. Ke4 {Weighted Error Value: White=0.07 (flawless) /Black=0.06 (flawless)} 1/2-1/2